[Event "MARCEL 1st Div Ch-League 2019"]
[Site "Dhaka"]
[Date "2019.11.12"]
[Round "1.1"]
[White "Shafiqul, Islam"]
[Black "Badal, Halder"]
[Result "1-0"]
[ECO "D51"]
[WhiteElo "1920"]
[BlackElo "1841"]
[Annotator "NA RC"]
[PlyCount "71"]
[EventDate "2019.11.12"]
[EventCountry "BAN"]
[SourceTitle "playchess.com"]
[Source "ChessBase"]
[SourceQuality "1"]
[TimeControl "5400+30"]

1. Nf3 {[%emt 1:30:30]} d5 {[%emt 1:30:30]} 2. d4 {[%emt 0:00:00]} Nf6 {[%emt 0:00:00]} 3. c4 {[%emt 0:01:00]} e6 {[%emt 0:01:00]} 4. Nc3 {[%emt 0:00:30]} Bb4 {[%emt 0:00:30]} 5. Bg5 {[%emt 0:00:30]} Nbd7 {[%emt 0:00:30]} 6. cxd5 {[%emt 0:00:00]} exd5 {[%emt 0:00:00]} 7. Qb3 {[%emt 0:01:00]} Bxc3+ {[%emt 0:01:00]} 8. bxc3 {[%emt 0:00:30]} O-O {[%emt 0:00:00]} 9. e3 {[%emt 0:00:30]} c6 {[%emt 0:01:00]} 10. Bd3 {[%emt 0:00:30]} Qa5 {[%emt 0:00:00]} 11. O-O Ne4 {[%emt 0:01:00]} 12. Be7 {[%emt 0:01:00]} Re8 {[%emt 0:00:30]} 13. Bb4 {[%emt 0:00:30]} Qc7 {[%emt 0:00:30]} 14. c4 {[%emt 0:00:30]} dxc4 {[%emt 0:00:30]} 15. Bxc4 {[%emt 0:00:30]} Ndf6 {[%emt 0:00:30]} 16. Ne5 {[%emt 0:00:00]} Be6 {[%emt 0:00:30]} 17. f3 {[%emt 0:01:00]} Bxc4 {[%emt 0:00:30]} 18. Qxc4 {[%emt 0:00:30]} Nd6 {[%emt 0:00:30]} 19. Bxd6 {[%emt 0:00:30]} Qxd6 {[%emt 0:00:30]} 20. Qxf7+ {[%emt 0:00:30]} Kh8 {[%emt 0:00:00]} 21. Qxb7 {[%emt 0:00:30]} Qe6 {[%emt 0:01:00]} 22. Rfc1 {[%emt 0:00:30]} Rac8 {[%emt 0:00:30]} 23. Rxc6 {[%emt 0:00:00]} Rxc6 {[%emt 0:00:00]} 24. Qxc6 {[%emt 0:00:00]} Qxc6 {[%emt 0:00:00]} 25. Nxc6 {[%emt 0:01:30]} Rxe3 {[%emt 0:01:30]} 26. Nxa7 {[%emt 0:00:30]} Rd3 {[%emt 0:00:00]} 27. Nb5 {[%emt 0:00:30]} Rd2 {[%emt 0:01:00]} 28. a4 {[%emt 0:00:30]} Nd5 {[%emt 0:00:30]} 29. a5 {[%emt 0:00:30]} Nf4 {[%emt 0:00:30]} 30. a6 {[%emt 0:00:30]} Rxg2+ {[%emt 0:00:00]} 31. Kh1 {[%emt 0:00:30]} Rg6 {[%emt 0:01:00]} 32. a7 {[%emt 0:00:30]} h5 {[%emt 0:00:00]} 33. a8=Q+ {[%emt 0:00:00]} Kh7 {[%emt 0:01:00]} 34. Qe4 {[%emt 0:01:00]} Nh3 {[%emt 0:00:00]} 35. Qxg6+ {[%emt 0:00:30]} Kxg6 {[%emt 0:01:00]} 36. Re1 {[%emt 0:00:30]} 1-0

[Event "MARCEL 1st Div Ch-League 2019"]
[Site "Dhaka"]
[Date "2019.11.12"]
[Round "1.2"]
[White "Suvradeepta, Das"]
[Black "Roy, Prantik"]
[Result "0-1"]
[ECO "E01"]
[WhiteElo "1997"]
[BlackElo "2349"]
[Annotator "NA"]
[PlyCount "52"]
[EventDate "2019.11.12"]
[EventCountry "BAN"]
[SourceTitle "playchess.com"]
[Source "ChessBase"]
[SourceQuality "1"]
[TimeControl "5400+30"]

1. c4 {[%emt 0:00:00]} c6 {[%emt 0:00:28]} 2. g3 {[%emt 0:00:00]} d5 {[%emt 0:00:12]} 3. Bg2 {[%emt 0:00:00]} Nf6 {[%emt 0:00:15]} 4. Nf3 {[%emt 0:00:00]} e6 {[%emt 0:00:37]} 5. O-O {[%emt 0:01:24]} Bd6 {[%emt 0:00:24]} 6. b3 {[%emt 0:00:26]} Nbd7 {[%emt 0:00:27]} 7. Bb2 {[%emt 0:00:53]} O-O {[%emt 0:00:26]} 8. d4 {[%emt 0:00:50]} Ne4 {[%emt 0:04:20]} 9. Nbd2 {[%emt 0:04:31]} f5 {[%emt 0:01:31]} 10. Qc2 {[%emt 0:05:05]} Qf6 {[%emt 0:02:43]} 11. Nxe4 {[%emt 0:09:12]} fxe4 {[%emt 0:04:51]} 12. Ne1 {[%emt 0:01:07]} Qg6 {[%emt 0:02:40]} 13. f3 {[%emt 0:02:35]} Nf6 {[%emt 0:02:30]} 14. fxe4 {[%emt 0:02:48]} dxe4 {[%emt 0:00:31]} 15. Qd2 {[%emt 0:15:12]} Bd7 {[%emt 0:03:10]} 16. Nc2 {[%emt 0:06:42]} Ng4 {[%emt 0:05:11]} 17. Ba3 {[%emt 0:20:20]} e3 {[%emt 0:17:48]} 18. Qc3 {[%emt 0:04:51]} Qh6 {[%emt 0:05:12]} 19. h3 {[%emt 0:01:24]} Bxg3 {[%emt 0:07:04]} 20. Bxf8 {[%emt 0:03:45]} Bf2+ {[%emt 0:00:33]} 21. Rxf2 {[%emt 0:01:26]} exf2+ {[%emt 0:00:08]} 22. Kh1 {[%emt 0:00:10]} Rxf8 {[%emt 0:01:30]} 23. Qg3 {[%emt 0:01:19]} Nf6 {[%emt 0:04:38]} 24. Qxf2 {[%emt 0:04:28]} Qd2 {[%emt 0:02:25]} 25. Ne1 {[%emt 0:00:59]} Ne4 {[%emt 0:01:38]} 26. Qh4 {[%emt 0:01:09]} Qxd4 {[%emt 0:00:25]} 0-1

[Event "MARCEL 1st Div Ch-League 2019"]
[Site "Dhaka"]
[Date "2019.11.12"]
[Round "1.3"]
[White "Nayem, Haque"]
[Black "Sarbojit Paul"]
[Result "0-1"]
[ECO "B22"]
[WhiteElo "1875"]
[BlackElo "2074"]
[Annotator "NA"]
[PlyCount "87"]
[EventDate "2019.11.12"]
[EventCountry "BAN"]
[SourceTitle "playchess.com"]
[Source "ChessBase"]
[SourceQuality "1"]
[TimeControl "5400+30"]

1. e4 {[%emt 0:00:06]} c5 {[%emt 0:00:37]} 2. d4 {[%emt 0:00:11]} cxd4 {[%emt 0:00:55]} 3. c3 {[%emt 0:00:02]} Nf6 {[%emt 0:00:36]} 4. e5 {[%emt 0:00:12]} Nd5 {[%emt 0:00:03]} 5. Nf3 {[%emt 0:00:14]} e6 {[%emt 0:00:30]} 6. cxd4 {[%emt 0:00:38]} d6 {[%emt 0:00:11]} 7. Nc3 {[%emt 0:00:40]} Nxc3 {[%emt 0:00:49]} 8. bxc3 {[%emt 0:00:16]} Qc7 {[%emt 0:00:02]} 9. Bd2 {[%emt 0:01:32]} Nd7 {[%emt 0:01:54]} 10. exd6 {[%emt 0:01:48]} Bxd6 {[%emt 0:00:16]} 11. Bd3 {[%emt 0:00:06]} b6 {[%emt 0:05:34]} 12. O-O {[%emt 0:07:16]} Bb7 {[%emt 0:01:08]} 13. Qe2 {[%emt 0:04:20]} O-O {[%emt 0:07:14]} 14. h3 {[%emt 0:00:35]} Rfe8 {[%emt 0:08:01]} 15. Rfe1 {[%emt 0:04:59]} e5 {[%emt 0:12:49]} 16. Bf5 {[%emt 0:29:15]} e4 {[%emt 0:07:08]} 17. Ng5 {[%emt 0:08:17]} Nf6 {[%emt 0:00:43]} 18. h4 {[%emt 0:01:19]} g6 {[%emt 0:05:51]} 19. Bg4 {[%emt 0:00:40]} h6 {[%emt 0:04:28]} 20. Nxf7 {[%emt 0:02:45]} Qxf7 {[%emt 0:04:11]} 21. Bxh6 {[%emt 0:00:05]} Nxg4 {[%emt 0:01:55]} 22. Qxg4 {[%emt 0:00:03]} Qf5 {[%emt 0:01:22]} 23. Qe2 {[%emt 0:02:17]} Rac8 {[%emt 0:01:02]} 24. Qe3 {[%emt 0:00:40]} Bd5 {[%emt 0:00:57]} 25. a4 {[%emt 0:34:14]} Rc7 {[%emt 0:01:23]} 26. a5 {[%emt 0:00:00]} b5 {[%emt 0:00:49]} 27. f3 {[%emt 0:00:00]} Re6 {[%emt 0:01:18]} 28. f4 {[%emt 0:00:00]} a6 {[%emt 0:03:52]} 29. Bg5 {[%emt 0:02:00]} Bc4 {[%emt 0:00:54]} 30. Kh2 {[%emt 0:00:00]} Bd3 {[%emt 0:00:48]} 31. Rec1 {[%emt 0:00:00]} Rf7 {[%emt 0:01:22]} 32. g3 {[%emt 0:00:00]} Bf8 {[%emt 0:01:34]} 33. Kg2 {[%emt 0:00:00]} Rc6 {[%emt 0:00:35]} 34. Bd8 {[%emt 0:00:00]} Rc8 {[%emt 0:00:32]} 35. Bb6 {[%emt 0:00:00]} Bd6 {[%emt 0:00:13]} 36. Ra2 {[%emt 0:00:00]} Qg4 {[%emt 0:02:33]} 37. Rf2 {[%emt 0:00:00]} Rcf8 {[%emt 0:01:47]} 38. Kh2 {[%emt 0:00:00]} Rh7 {[%emt 0:02:34]} 39. Bc5 {[%emt 0:00:00]} Bxc5 {[%emt 0:01:17]} 40. dxc5 {[%emt 0:00:00]} Qe6 {[%emt 0:01:37]} 41. Re1 {[%emt 0:00:00]} Qd5 {[%emt 0:00:28]} 42. c6 {[%emt 0:00:00]} Qxc6 {[%emt 0:00:16]} 43. f5 {[%emt 0:00:00]} gxf5 {[%emt 0:01:23]} 44. Qd4 {[%emt 0:02:06]} 0-1

[Event "MARCEL 1st Div Ch-League 2019"]
[Site "Dhaka"]
[Date "2019.11.12"]
[Round "1.4"]
[White "Gias Uddin, Ahmed"]
[Black "Islam, Sheik   Khairul"]
[Result "0-1"]
[ECO "D02"]
[WhiteElo "1900"]
[BlackElo "1966"]
[Annotator "NA"]
[PlyCount "98"]
[EventDate "2019.11.12"]
[EventCountry "BAN"]
[SourceTitle "playchess.com"]
[Source "ChessBase"]
[SourceQuality "1"]
[TimeControl "5400+30"]

1. Nf3 {[%emt 0:00:00]} c6 {[%emt 0:00:26]} 2. g3 {[%emt 0:00:05]} d5 {[%emt 0:00:09]} 3. Bg2 {[%emt 0:00:21]} Nd7 {[%emt 0:02:38]} 4. d4 {[%emt 0:00:35]} Ngf6 {[%emt 0:01:56]} 5. O-O {[%emt 0:00:35]} e6 {[%emt 0:00:10]} 6. Bf4 {[%emt 0:01:21]} Be7 {[%emt 0:05:15]} 7. c4 {[%emt 0:00:53]} Nf8 {[%emt 0:02:06]} 8. Nc3 {[%emt 0:05:52]} Ng6 {[%emt 0:00:10]} 9. c5 {[%emt 0:01:59]} b6 {[%emt 0:03:49]} 10. b4 {[%emt 0:00:09]} O-O {[%emt 0:00:11]} 11. Ne5 {[%emt 0:04:32]} Nxe5 {[%emt 0:02:32]} 12. Bxe5 {[%emt 0:01:05]} a5 {[%emt 0:01:45]} 13. a3 {[%emt 0:00:16]} Ba6 {[%emt 0:00:36]} 14. Qc2 {[%emt 0:16:49]} Nd7 {[%emt 0:02:41]} 15. Bf4 {[%emt 0:02:23]} f5 {[%emt 0:01:58]} 16. Rfb1 {[%emt 0:05:20]} Bc4 {[%emt 0:02:38]} 17. cxb6 {[%emt 0:05:39]} Nxb6 {[%emt 0:01:42]} 18. bxa5 {[%emt 0:05:05]} Rxa5 {[%emt 0:01:57]} 19. a4 {[%emt 0:04:17]} Nc8 {[%emt 0:05:23]} 20. Bd2 {[%emt 0:02:17]} Ra6 {[%emt 0:01:10]} 21. e3 {[%emt 0:03:22]} Nd6 {[%emt 0:01:14]} 22. f3 {[%emt 0:00:45]} Bf6 {[%emt 0:09:00]} 23. f4 {[%emt 0:04:32]} h6 {[%emt 0:01:32]} 24. a5 {[%emt 0:00:20]} Qc8 {[%emt 0:06:42]} 25. Na4 {[%emt 0:00:48]} Bb5 {[%emt 0:02:30]} 26. Bb4 {[%emt 0:04:21]} Be7 {[%emt 0:02:00]} 27. Nb6 {[%emt 0:01:27]} Qe8 {[%emt 0:01:04]} 28. Bf1 {[%emt 0:01:08]} Rf7 {[%emt 0:04:53]} 29. Bxd6 {[%emt 0:05:21]} Bxd6 {[%emt 0:00:04]} 30. Bxb5 {[%emt 0:00:11]} cxb5 {[%emt 0:00:03]} 31. Qb3 {[%emt 0:00:21]} b4 {[%emt 0:00:07]} 32. Qd3 {[%emt 0:02:56]} Raa7 {[%emt 0:05:07]} 33. Rc1 {[%emt 0:01:29]} Rfc7 {[%emt 0:01:49]} 34. Kg2 {[%emt 0:04:11]} Bf8 {[%emt 0:03:32]} 35. Rxc7 {[%emt 0:06:50]} Rxc7 {[%emt 0:00:03]} 36. a6 {[%emt 0:00:23]} Ra7 {[%emt 0:02:34]} 37. Rc1 {[%emt 0:00:24]} Qb8 {[%emt 0:02:05]} 38. Rc6 {[%emt 0:01:16]} Qe8 {[%emt 0:00:45]} 39. Rc8 {[%emt 0:00:39]} Qe7 {[%emt 0:00:32]} 40. Qb5 {[%emt 0:01:27]} Kh7 {[%emt 0:01:53]} 41. Rb8 {[%emt 0:01:42]} Qf7 {[%emt 0:01:42]} 42. Nc8 {[%emt 0:00:57]} Rc7 {[%emt 0:00:19]} 43. Qe2 {[%emt 0:01:13]} b3 {[%emt 0:00:19]} 44. Kh3 {[%emt 0:02:03]} Rc2 {[%emt 0:00:17]} 45. Qd1 {[%emt 0:01:08]} g5 {[%emt 0:00:58]} 46. fxg5 {[%emt 0:01:01]} hxg5 {[%emt 0:00:02]} 47. Rb7 {[%emt 0:00:12]} g4+ {[%emt 0:00:31]} 48. Kh4 {[%emt 0:00:22]} Rxh2+ {[%emt 0:00:06]} 49. Kg5 {[%emt 0:00:14]} Bh6# {[%emt 0:00:02]} 0-1

[Event "MARCEL 1st Div Ch-League 2019"]
[Site "Dhaka"]
[Date "2019.11.12"]
[Round "1.5"]
[White "Md Shawkat Ali Sheikh"]
[Black "Rahman, Almasur"]
[Result "1/2-1/2"]
[ECO "C96"]
[WhiteElo "1851"]
[BlackElo "1958"]
[Annotator "NA"]
[PlyCount "52"]
[EventDate "2019.11.12"]
[EventCountry "BAN"]
[SourceTitle "playchess.com"]
[Source "ChessBase"]
[SourceQuality "1"]
[TimeControl "5400+30"]

1. e4 {[%emt 0:00:00]} e5 {[%emt 0:00:00]} 2. Nf3 {[%emt 0:00:01]} Nc6 {[%emt 0:00:02]} 3. Bb5 {[%emt 0:00:39]} a6 {[%emt 0:00:21]} 4. Ba4 {[%emt 0:00:32]} Nf6 {[%emt 0:00:24]} 5. O-O {[%emt 0:03:44]} Be7 {[%emt 0:01:33]} 6. Re1 {[%emt 0:00:27]} b5 {[%emt 0:00:58]} 7. Bb3 {[%emt 0:00:13]} d6 {[%emt 0:00:20]} 8. c3 {[%emt 0:00:27]} O-O {[%emt 0:00:11]} 9. h3 {[%emt 0:00:36]} Na5 {[%emt 0:00:36]} 10. Bc2 {[%emt 0:00:33]} c5 {[%emt 0:00:12]} 11. d4 {[%emt 0:00:37]} cxd4 {[%emt 0:00:21]} 12. cxd4 {[%emt 0:00:07]} Qc7 {[%emt 0:00:09]} 13. d5 {[%emt 0:01:11]} Bd7 {[%emt 0:00:23]} 14. Nbd2 {[%emt 0:02:02]} Rac8 {[%emt 0:00:16]} 15. Bd3 {[%emt 0:00:56]} Qb6 {[%emt 0:00:51]} 16. Nf1 {[%emt 0:01:48]} Rc7 {[%emt 0:00:45]} 17. Be3 {[%emt 0:01:32]} Qb8 {[%emt 0:00:19]} 18. Rc1 {[%emt 0:04:30]} Rxc1 {[%emt 0:00:16]} 19. Qxc1 {[%emt 0:01:12]} Rc8 {[%emt 0:00:29]} 20. Qd2 {[%emt 0:05:40]} Nc4 {[%emt 0:01:38]} 21. Qe2 {[%emt 0:04:12]} Bd8 {[%emt 0:02:04]} 22. Ng3 {[%emt 0:03:25]} Ba5 {[%emt 0:01:16]} 23. Rc1 {[%emt 0:02:51]} Nxe3 {[%emt 0:01:46]} 24. Qxe3 {[%emt 0:04:53]} Rxc1+ {[%emt 0:01:15]} 25. Qxc1 {[%emt 0:00:16]} Qc8 {[%emt 0:00:14]} 26. Qxc8+ {[%emt 0:02:00]} Bxc8 {[%emt 1:26:21]} 1/2-1/2

[Event "MARCEL 1st Div Ch-League 2019"]
[Site "Dhaka"]
[Date "2019.11.12"]
[Round "1.6"]
[White "Mohammad, Shameem"]
[Black "Md Sirajul, Islam"]
[Result "1-0"]
[ECO "A93"]
[WhiteElo "2015"]
[BlackElo "1768"]
[Annotator "NA"]
[PlyCount "87"]
[EventDate "2019.11.12"]
[EventCountry "BAN"]
[SourceTitle "playchess.com"]
[Source "ChessBase"]
[SourceQuality "1"]
[TimeControl "5400+30"]

1. d4 {[%emt 0:00:00]} Nf6 {[%emt 0:00:00]} 2. Nf3 {[%emt 0:00:02]} e6 {[%emt 0:00:00]} 3. g3 {[%emt 0:00:11]} Be7 {[%emt 0:00:08]} 4. Bg2 {[%emt 0:00:09]} d5 {[%emt 0:00:10]} 5. c4 {[%emt 0:00:40]} c6 {[%emt 0:00:03]} 6. O-O {[%emt 0:00:09]} O-O {[%emt 0:00:04]} 7. b3 {[%emt 0:02:05]} Ne4 {[%emt 0:01:15]} 8. Qc2 {[%emt 0:01:06]} f5 {[%emt 0:00:11]} 9. Bf4 {[%emt 0:05:11]} Nd7 {[%emt 0:00:18]} 10. Ne5 {[%emt 0:00:49]} Nxe5 11. Bxe5 {[%emt 0:00:05]} Bf6 {[%emt 0:03:37]} 12. f4 {[%emt 0:02:20]} Bxe5 {[%emt 0:01:37]} 13. fxe5 {[%emt 0:01:03]} Bd7 {[%emt 0:01:03]} 14. Nd2 {[%emt 0:01:26]} Qg5 {[%emt 0:00:53]} 15. Rf4 {[%emt 0:08:21]} Qh5 {[%emt 0:01:22]} 16. Nxe4 {[%emt 0:00:28]} fxe4 {[%emt 0:00:20]} 17. Raf1 {[%emt 0:00:34]} Rxf4 {[%emt 0:04:24]} 18. Rxf4 {[%emt 0:00:16]} Rf8 {[%emt 0:00:21]} 19. Rxf8+ {[%emt 0:01:55]} Kxf8 {[%emt 0:00:01]} 20. Qd2 {[%emt 0:00:27]} a5 {[%emt 0:02:31]} 21. Bf1 {[%emt 0:16:55]} b6 {[%emt 0:01:26]} 22. c5 {[%emt 0:06:33]} bxc5 {[%emt 0:01:00]} 23. Qxa5 {[%emt 0:01:59]} cxd4 {[%emt 0:01:25]} 24. Qc5+ {[%emt 0:00:22]} Ke8 {[%emt 0:01:21]} 25. Qxd4 {[%emt 0:00:05]} Qg5 {[%emt 0:00:21]} 26. Qc3 {[%emt 0:09:01]} c5 {[%emt 0:03:17]} 27. e3 {[%emt 0:01:43]} h5 {[%emt 0:01:20]} 28. Qxc5 {[%emt 0:02:16]} Qxe5 {[%emt 0:00:06]} 29. Qd4 {[%emt 0:04:09]} Qg5 {[%emt 0:00:08]} 30. Be2 {[%emt 0:02:01]} h4 {[%emt 0:01:00]} 31. Kg2 {[%emt 0:01:13]} hxg3 {[%emt 0:01:36]} 32. hxg3 {[%emt 0:00:09]} Qh6 {[%emt 0:01:48]} 33. a4 {[%emt 0:02:05]} Kf8 {[%emt 0:00:46]} 34. a5 {[%emt 0:01:56]} e5 {[%emt 0:01:39]} 35. Qxd5 {[%emt 0:02:05]} Qxe3 {[%emt 0:00:39]} 36. Qd6+ {[%emt 0:01:16]} Ke8 {[%emt 0:03:40]} 37. Qxe5+ {[%emt 0:07:04]} Kd8 {[%emt 0:00:01]} 38. Qb8+ {[%emt 0:00:18]} Ke7 {[%emt 0:00:04]} 39. Qb4+ {[%emt 0:00:56]} Kd8 {[%emt 0:01:49]} 40. Qb6+ {[%emt 0:01:36]} Qxb6 {[%emt 1:08:16]} 41. axb6 {[%emt 0:19:31]} Kc8 {[%emt 0:00:00]} 42. Ba6+ {[%emt 0:00:00]} Kd8 {[%emt 0:00:00]} 43. Bb7 {[%emt 0:00:00]} Bc6 {[%emt 0:01:30]} 44. Ba6 1-0

[Event "MARCEL 1st Div Ch-League 2019"]
[Site "Dhaka"]
[Date "2019.11.12"]
[Round "1.7"]
[White "Moniruzzaman, Masud"]
[Black "Habibur Rahman, Sohel"]
[Result "0-1"]
[ECO "B72"]
[WhiteElo "1828"]
[BlackElo "1841"]
[Annotator "NA"]
[PlyCount "66"]
[EventDate "2019.11.12"]
[EventCountry "BAN"]
[SourceTitle "playchess.com"]
[Source "ChessBase"]
[SourceQuality "1"]
[TimeControl "5400+30"]

1. e4 {[%emt 0:00:00]} c5 {[%emt 0:00:00]} 2. Nf3 {[%emt 0:00:14]} Nc6 {[%emt 0:00:22]} 3. d4 {[%emt 0:00:14]} cxd4 {[%emt 0:01:09]} 4. Nxd4 {[%emt 0:00:10]} d6 {[%emt 0:00:56]} 5. Be2 {[%emt 0:00:42]} g6 {[%emt 1:30:03]} 6. Nc3 {[%emt 1:31:40]} Bg7 {[%emt 0:00:30]} 7. Be3 {[%emt 0:00:30]} a6 {[%emt 0:00:00]} 8. Qd2 {[%emt 0:00:30]} Nf6 {[%emt 0:00:00]} 9. Nxc6 {[%emt 0:00:00]} bxc6 {[%emt 0:00:00]} 10. Bh6 {[%emt 0:01:00]} O-O {[%emt 0:02:00]} 11. O-O-O {[%emt 0:00:00]} Qa5 {[%emt 0:00:30]} 12. h4 {[%emt 0:01:00]} Nxe4 {[%emt 0:00:30]} 13. Nxe4 {[%emt 0:00:30]} Qxa2 {[%emt 0:00:30]} 14. c3 {[%emt 0:00:30]} Qa1+ {[%emt 0:00:30]} 15. Kc2 {[%emt 0:00:00]} Qa4+ {[%emt 0:00:30]} 16. Kd3 {[%emt 0:00:00]} Bf5 17. f3 {[%emt 0:01:30]} d5 {[%emt 0:00:00]} 18. Bxg7 {[%emt 0:00:30]} dxe4+ {[%emt 0:00:00]} 19. Ke3 Kxg7 {[%emt 0:00:00]} 20. Ra1 Qb3 {[%emt 0:02:30]} 21. Qd4+ {[%emt 0:01:30]} Kg8 {[%emt 0:00:30]} 22. fxe4 {[%emt 0:00:30]} Rfd8 {[%emt 0:00:30]} 23. Qc5 {[%emt 0:00:30]} Be6 {[%emt 0:00:30]} 24. h5 {[%emt 0:00:30]} Qxb2 {[%emt 0:00:30]} 25. Rad1 {[%emt 0:00:00]} Bb3 26. hxg6 {[%emt 0:00:00]} Bxd1 {[%emt 0:00:00]} 27. gxh7+ Kh8 {[%emt 0:00:00]} 28. Bxd1 Qd2+ {[%emt 0:00:00]} 29. Kf3 Rd3+ {[%emt 0:00:00]} 30. Kg4 Qxg2+ {[%emt 0:03:00]} 31. Kf4 {[%emt 0:03:30]} Qg3+ {[%emt 0:00:00]} 32. Kf5 {[%emt 0:00:00]} e6+ {[%emt 0:00:00]} 33. Kf6 {[%emt 0:00:29]} Qg7+ {[%emt 0:00:00]} 0-1

[Event "MARCEL 1st Div Ch-League 2019"]
[Site "Dhaka"]
[Date "2019.11.12"]
[Round "1.8"]
[White "Sharmin, Samiha Shimmi"]
[Black "Kishor, Shazzad"]
[Result "0-1"]
[ECO "B08"]
[WhiteElo "1853"]
[BlackElo "1617"]
[Annotator "NA"]
[PlyCount "106"]
[EventDate "2019.11.12"]
[EventCountry "BAN"]
[SourceTitle "playchess.com"]
[Source "ChessBase"]
[SourceQuality "1"]
[TimeControl "5400+30"]

1. e4 {[%emt 0:00:00]} g6 {[%emt 0:01:42]} 2. d4 {[%emt 0:00:00]} Bg7 {[%emt 0:00:27]} 3. Nc3 {[%emt 0:00:06]} d6 {[%emt 0:02:54]} 4. Nf3 {[%emt 0:00:16]} Nf6 {[%emt 0:01:31]} 5. Bd3 {[%emt 0:01:15]} O-O {[%emt 0:00:08]} 6. Bg5 {[%emt 0:01:39]} c5 {[%emt 0:10:56]} 7. Qd2 {[%emt 0:08:50]} cxd4 {[%emt 0:00:44]} 8. Nxd4 {[%emt 0:00:15]} Nc6 {[%emt 0:06:06]} 9. Nf3 {[%emt 0:04:09]} d5 {[%emt 0:12:54]} 10. Bxf6 {[%emt 0:17:27]} Bxf6 {[%emt 0:06:53]} 11. exd5 {[%emt 0:02:12]} Bxc3 {[%emt 0:04:21]} 12. Qxc3 {[%emt 0:02:36]} Qxd5 {[%emt 0:00:55]} 13. O-O {[%emt 0:03:48]} Bf5 {[%emt 0:06:46]} 14. Rfd1 {[%emt 0:05:12]} Rfd8 {[%emt 0:06:39]} 15. Qe1 {[%emt 0:10:45]} Qc5 {[%emt 0:08:34]} 16. Bxf5 {[%emt 0:11:36]} Qxf5 {[%emt 0:00:36]} 17. Qc3 {[%emt 0:10:53]} Rac8 {[%emt 0:01:29]} 18. Rxd8+ {[%emt 0:09:42]} Nxd8 {[%emt 0:10:24]} 19. Qe3 {[%emt 0:03:36]} Qxc2 {[%emt 0:01:49]} 20. Re1 {[%emt 0:00:19]} e6 {[%emt 0:04:33]} 21. Ne5 {[%emt 0:01:00]} Qxb2 {[%emt 0:03:19]} 22. h4 {[%emt 0:00:28]} Qc3 {[%emt 0:01:33]} 23. Qe2 {[%emt 0:01:25]} Nc6 {[%emt 0:02:47]} 24. Ng4 {[%emt 0:00:43]} h5 {[%emt 0:02:40]} 25. Nh2 {[%emt 0:01:23]} Nd4 {[%emt 0:00:29]} 26. Qe5 {[%emt 0:01:17]} Nf5 {[%emt 0:00:36]} 27. Qe4 {[%emt 0:00:39]} Rc4 {[%emt 0:00:53]} 28. Qe2 {[%emt 0:00:37]} Nxh4 {[%emt 0:00:34]} 29. Rd1 {[%emt 0:00:25]} Rd4 {[%emt 0:00:35]} 30. Re1 {[%emt 0:01:03]} Qc6 {[%emt 0:00:22]} 31. f3 {[%emt 0:00:19]} Rc4 {[%emt 0:00:22]} 32. Rd1 {[%emt 0:01:04]} Rc1 {[%emt 0:00:45]} 33. Qd2 {[%emt 0:00:28]} Rxd1+ 34. Qxd1 {[%emt 0:00:01]} Qc7 {[%emt 0:00:57]} 35. Nf1 {[%emt 0:00:26]} Nf5 {[%emt 0:00:13]} 36. Qd2 {[%emt 0:00:31]} Qb6+ {[%emt 0:00:20]} 37. Kh1 {[%emt 0:00:09]} Qd4 {[%emt 0:00:27]} 38. Qc2 {[%emt 0:00:14]} Qd7 {[%emt 0:00:38]} 39. Nd2 {[%emt 0:00:06]} Qc6 {[%emt 0:00:40]} 40. Qb2 {[%emt 0:00:05]} Ne7 {[%emt 0:00:48]} 41. Ne4 {[%emt 0:00:11]} Nd5 {[%emt 0:00:19]} 42. Qe5 {[%emt 0:00:14]} Qc1+ {[%emt 0:00:18]} 43. Kh2 {[%emt 0:00:02]} Qf4+ {[%emt 0:00:06]} 44. Qxf4 {[%emt 0:01:00]} Nxf4 {[%emt 0:00:06]} 45. Nd6 {[%emt 0:00:07]} b6 {[%emt 0:00:55]} 46. Nc8 {[%emt 0:00:02]} Kf8 {[%emt 0:01:15]} 47. Nxa7 {[%emt 0:00:02]} Nd5 {[%emt 0:00:18]} 48. Kg3 {[%emt 0:00:45]} Ke8 {[%emt 0:00:24]} 49. Nc6 {[%emt 0:00:15]} f6 {[%emt 0:00:20]} 50. a4 {[%emt 0:00:07]} Kd7 {[%emt 0:00:28]} 51. Nd4 {[%emt 0:00:51]} Nc3 {[%emt 0:00:08]} 52. f4 {[%emt 0:01:46]} Nxa4 {[%emt 0:00:16]} 53. Nf3 {[%emt 0:00:00]} b5 {[%emt 0:00:38]} 0-1

[Event "MARCEL 1st Div Ch-League 2019"]
[Site "Dhaka"]
[Date "2019.11.12"]
[Round "1.9"]
[White "Khan, Monir Hossain"]
[Black "Singh, Soram Rahul"]
[Result "0-1"]
[ECO "D02"]
[WhiteElo "1993"]
[BlackElo "2104"]
[Annotator "NA"]
[PlyCount "106"]
[EventDate "2019.11.12"]
[EventCountry "BAN"]
[SourceTitle "playchess.com"]
[Source "ChessBase"]
[SourceQuality "1"]
[TimeControl "5400+30"]

1. Nf3 {[%emt 0:00:00]} Nf6 {[%emt 0:00:00]} 2. d4 {[%emt 0:00:00]} d5 {[%emt 0:00:00]} 3. Bf4 {[%emt 0:01:29]} c5 {[%emt 0:00:14]} 4. c3 {[%emt 0:00:20]} Nc6 {[%emt 0:00:31]} 5. e3 {[%emt 0:00:04]} Qb6 {[%emt 0:00:17]} 6. Qb3 {[%emt 0:00:10]} c4 {[%emt 0:00:18]} 7. Qc2 {[%emt 0:00:03]} Bf5 {[%emt 0:00:20]} 8. Qc1 {[%emt 0:00:02]} h6 {[%emt 0:05:01]} 9. h3 {[%emt 0:00:17]} e6 {[%emt 0:00:57]} 10. Nbd2 {[%emt 0:00:04]} Be7 {[%emt 0:00:18]} 11. Be2 {[%emt 0:00:44]} Rc8 {[%emt 0:00:39]} 12. Ne5 {[%emt 0:03:46]} O-O {[%emt 0:03:36]} 13. O-O {[%emt 0:00:05]} Nxe5 {[%emt 0:01:19]} 14. Bxe5 {[%emt 0:00:16]} Ne4 {[%emt 0:03:53]} 15. Nxe4 {[%emt 0:05:05]} Bxe4 {[%emt 0:01:26]} 16. Bg3 {[%emt 0:00:40]} Qa5 {[%emt 0:02:36]} 17. f3 {[%emt 0:01:16]} Bg6 {[%emt 0:00:25]} 18. Qd2 {[%emt 0:06:31]} b5 {[%emt 0:01:42]} 19. a3 {[%emt 0:00:04]} Qb6 {[%emt 0:01:16]} 20. Bf2 {[%emt 0:00:16]} a5 {[%emt 0:01:04]} 21. Rfe1 {[%emt 0:00:10]} b4 {[%emt 0:02:27]} 22. axb4 {[%emt 0:00:27]} axb4 {[%emt 0:00:08]} 23. Bf1 {[%emt 0:00:17]} f5 {[%emt 0:08:17]} 24. f4 {[%emt 0:01:58]} Ra8 {[%emt 0:05:22]} 25. Reb1 {[%emt 0:00:29]} b3 {[%emt 0:00:41]} 26. Qd1 {[%emt 0:01:31]} Ra2 {[%emt 0:00:56]} 27. Be1 {[%emt 0:06:00]} Rfa8 {[%emt 0:02:41]} 28. Qc1 {[%emt 0:08:15]} Ba3 {[%emt 0:06:58]} 29. bxa3 {[%emt 0:10:35]} Rxa1 {[%emt 0:01:54]} 30. Rxa1 {[%emt 0:06:20]} b2 {[%emt 0:00:07]} 31. Qb1 {[%emt 0:15:54]} bxa1=Q {[%emt 0:00:11]} 32. Qxa1 {[%emt 0:03:36]} Qb3 {[%emt 0:00:12]} 33. Be2 {[%emt 0:05:31]} Rxa3 {[%emt 0:03:32]} 34. Qc1 {[%emt 0:03:37]} Ra2 {[%emt 0:00:13]} 35. Bf3 {[%emt 0:00:49]} Qc2 {[%emt 0:01:49]} 36. Qxc2 {[%emt 0:00:46]} Rxc2 {[%emt 0:00:03]} 37. Kf1 {[%emt 0:00:10]} Be8 {[%emt 0:00:27]} 38. g4 {[%emt 0:00:53]} g6 {[%emt 0:01:20]} 39. h4 {[%emt 0:00:51]} h5 {[%emt 0:02:44]} 40. gxf5 {[%emt 0:01:36]} gxf5 {[%emt 0:00:06]} 41. Bd1 {[%emt 0:01:34]} Ra2 {[%emt 0:00:23]} 42. Be2 {[%emt 0:03:11]} Kg7 {[%emt 0:00:07]} 43. Bf3 {[%emt 0:01:37]} Kg6 {[%emt 0:00:10]} 44. Bd1 {[%emt 0:00:03]} Ba4 {[%emt 0:00:10]} 45. Bxa4 {[%emt 0:00:04]} Rxa4 {[%emt 0:00:06]} 46. Ke2 {[%emt 0:00:56]} Ra2+ {[%emt 0:00:07]} 47. Bd2 {[%emt 0:00:02]} Kf7 {[%emt 0:00:16]} 48. Kd1 {[%emt 0:03:16]} Ke7 {[%emt 0:00:07]} 49. Ke2 {[%emt 0:03:38]} Kd7 {[%emt 0:00:17]} 50. Kd1 {[%emt 0:04:13]} Kc6 {[%emt 0:00:11]} 51. Ke2 {[%emt 0:01:11]} Kb5 {[%emt 0:00:07]} 52. Kd1 {[%emt 0:00:12]} Ka4 {[%emt 0:00:06]} 53. Ke2 {[%emt 0:00:10]} Kb3 {[%emt 0:00:10]} 0-1